[Event "Kragero Resort A 2020"]
[Site "Kragero"]
[Date "2020.02.22"]
[Round "8.14"]
[White "Van Dael, Siem"]
[Black "Gretarsson, Helgi Ass"]
[Result "0-1"]
[ECO "B06"]
[WhiteElo "2257"]
[BlackElo "2403"]
[Annotator "ChessBase"]
[PlyCount "116"]
[EventDate "2020.02.19"]
[EventType "swiss"]
[EventCountry "NOR"]
[SourceTitle "playchess.com"]
[Source "ChessBase"]
[SourceQuality "1"]
[TimeControl "5400+30"]

1. e4 {[%emt 0:01:10]} g6 {[%emt 0:00:00]} 2. d4 {[%emt 0:00:43]} Bg7 {[%emt 0:00:00]} 3. Nc3 {[%emt 0:00:50]} d6 {[%emt 0:00:00]} 4. Be3 {[%emt 0:00:20]} a6 {[%emt 0:00:00]} 5. Qd2 {[%emt 0:00:16]} b5 {[%emt 0:01:39]} 6. f3 {[%emt 0:00:39]} Nd7 {[%emt 0:01:35]} 7. h4 {[%emt 0:00:16]} h5 {[%emt 0:00:35]} 8. Nh3 {[%emt 0:00:34]} Bb7 {[%emt 0:00:11]} 9. O-O-O {[%emt 0:00:21]} Rc8 {[%emt 0:10:15]} 10. Ng5 {[%emt 0:01:58]} c5 {[%emt 0:07:59]} 11. e5 {[%emt 0:07:30]} cxd4 {[%emt 0:33:04]} 12. e6 {[%emt 0:01:34]} fxe6 {[%emt 0:00:05]} 13. Bxd4 {[%emt 0:00:09]} e5 {[%emt 0:07:28]} 14. Be3 {[%emt 0:06:52]} Nf8 {[%emt 0:00:46]} 15. Nxb5 {[%emt 0:11:34]} axb5 {[%emt 0:04:59]} 16. Bxb5+ {[%emt 0:00:14]} Bc6 {[%emt 0:05:46]} 17. Bxc6+ {[%emt 0:00:21]} Rxc6 {[%emt 0:00:06]} 18. Qd5 {[%emt 0:00:03]} Kd7 {[%emt 0:00:19]} 19. Nf7 {[%emt 0:04:28]} Qc8 {[%emt 0:02:20]} 20. Nxh8 {[%emt 0:00:39]} Nf6 {[%emt 0:00:27]} 21. Qb3 {[%emt 0:07:43]} Bxh8 {[%emt 0:00:28]} 22. Rhe1 {[%emt 0:02:39]} Ne6 {[%emt 0:00:36]} 23. Kb1 {[%emt 0:00:21]} Rc4 {[%emt 0:11:32]} 24. Bf2 {[%emt 0:03:04]} Ke8 {[%emt 0:02:33]} 25. a4 {[%emt 0:00:22]} Qa6 {[%emt 0:05:26]} 26. a5 {[%emt 0:00:42]} e4 {[%emt 0:01:55]} 27. fxe4 {[%emt 0:00:24]} Ng4 {[%emt 0:01:19]} 28. Bb6 {[%emt 0:01:17]} Nd4 {[%emt 0:00:38]} 29. Bxd4 {[%emt 0:03:38]} Bxd4 {[%emt 0:00:01]} 30. c3 {[%emt 0:00:42]} Bf2 {[%emt 0:00:12]} 31. Rh1 {[%emt 0:00:47]} Rxe4 {[%emt 0:02:14]} 32. Qg8+ {[%emt 0:01:06]} Kd7 {[%emt 0:00:01]} 33. Qxg6 {[%emt 0:00:14]} Re5 {[%emt 0:00:12]} 34. b4 {[%emt 0:07:14]} Qc4 {[%emt 0:00:50]} 35. Qc2 {[%emt 0:00:09]} Ne3 {[%emt 0:01:06]} 36. Qa4+ {[%emt 0:03:37]} Ke6 {[%emt 0:00:02]} 37. Rd2 {[%emt 0:00:49]} Nd5 {[%emt 0:00:15]} 38. Rc2 {[%emt 0:01:40]} Nxc3+ {[%emt 0:00:26]} 39. Rxc3 {[%emt 0:00:07]} Qxc3 {[%emt 0:00:02]} 40. Qa2+ {[%emt 0:00:06]} Kd7 {[%emt 0:01:35]} 41. Qa4+ {[%emt 0:02:33]} Kd8 {[%emt 0:00:14]} 42. Rc1 {[%emt 0:00:06]} Qd3+ {[%emt 0:00:29]} 43. Qc2 {[%emt 0:00:20]} Qxc2+ {[%emt 0:01:08]} 44. Rxc2 {[%emt 0:00:04]} Bd4 {[%emt 0:00:12]} 45. Rc4 {[%emt 0:00:42]} Rd5 {[%emt 0:00:57]} 46. Kc2 {[%emt 0:00:16]} e5 {[%emt 0:00:17]} 47. g4 {[%emt 0:02:39]} hxg4 {[%emt 0:00:19]} 48. h5 {[%emt 0:00:06]} Rb5 {[%emt 0:00:31]} 49. a6 {[%emt 0:00:12]} Rb8 {[%emt 0:00:05]} 50. b5 {[%emt 0:00:49]} g3 {[%emt 0:00:38]} 51. a7 {[%emt 0:00:45]} Bxa7 {[%emt 0:00:28]} 52. Rg4 {[%emt 0:00:05]} Rxb5 {[%emt 0:01:06]} 53. h6 {[%emt 0:00:21]} e4 {[%emt 0:00:20]} 54. Rg8+ {[%emt 0:00:18]} Kc7 {[%emt 0:00:29]} 55. Rxg3 {[%emt 0:01:02]} Rh5 {[%emt 0:00:33]} 56. Rg7+ {[%emt 0:00:05]} Kb6 {[%emt 0:00:05]} 57. h7 {[%emt 0:00:30]} Ka6 {[%emt 0:00:19]} 58. Re7 {[%emt 0:00:56]} e3 {[%emt 0:00:35]} 0-1

[Event "Kragero Resort A 2020"]
[Site "Kragero"]
[Date "2020.02.22"]
[Round "8.15"]
[White "Tryggestad, Andreas Garberg"]
[Black "Doluhanova, Evgeniya"]
[Result "1-0"]
[ECO "E18"]
[WhiteElo "2380"]
[BlackElo "2258"]
[Annotator "ChessBase"]
[PlyCount "133"]
[EventDate "2020.02.19"]
[EventType "swiss"]
[EventCountry "NOR"]
[SourceTitle "playchess.com"]
[Source "ChessBase"]
[SourceQuality "1"]
[TimeControl "5400+30"]

1. d4 {[%emt 0:00:00]} Nf6 {[%emt 0:00:42]} 2. c4 {[%emt 0:00:00]} e6 {[%emt 0:00:15]} 3. Nf3 {[%emt 0:00:00]} b6 {[%emt 0:00:04]} 4. g3 {[%emt 0:00:00]} Bb7 {[%emt 0:00:06]} 5. Bg2 {[%emt 0:00:00]} Be7 {[%emt 0:00:05]} 6. O-O {[%emt 0:00:00]} O-O {[%emt 0:00:05]} 7. Re1 {[%emt 0:00:00]} Na6 {[%emt 0:00:21]} 8. Nc3 {[%emt 0:01:12]} d5 {[%emt 0:00:50]} 9. cxd5 {[%emt 0:00:50]} Nxd5 {[%emt 0:04:44]} 10. e4 {[%emt 0:00:27]} Nxc3 {[%emt 0:00:14]} 11. bxc3 {[%emt 0:00:03]} c5 {[%emt 0:00:08]} 12. Bf4 {[%emt 0:00:49]} cxd4 {[%emt 0:00:26]} 13. cxd4 {[%emt 0:00:09]} Rc8 {[%emt 0:00:22]} 14. a3 {[%emt 0:01:25]} Rc3 {[%emt 0:01:46]} 15. Ne5 {[%emt 0:31:34]} f6 {[%emt 0:15:34]} 16. Nf3 {[%emt 0:02:29]} Kh8 {[%emt 0:10:38]} 17. Bc1 {[%emt 0:06:43]} Qa8 {[%emt 0:07:09]} 18. Bb2 {[%emt 0:00:43]} Rc7 {[%emt 0:00:26]} 19. Qe2 {[%emt 0:04:47]} Rfc8 {[%emt 0:01:46]} 20. Rab1 {[%emt 0:00:30]} Rd8 {[%emt 0:06:31]} 21. h4 {[%emt 0:00:59]} Qc8 {[%emt 0:00:50]} 22. h5 {[%emt 0:00:12]} Rc2 {[%emt 0:00:21]} 23. Qe3 {[%emt 0:00:28]} Nc7 {[%emt 0:04:21]} 24. h6 {[%emt 0:00:55]} g6 {[%emt 0:00:14]} 25. Bh3 {[%emt 0:08:15]} Nb5 {[%emt 0:11:28]} 26. Qb3 {[%emt 0:01:42]} Qc4 {[%emt 0:14:12]} 27. Qxc4 {[%emt 0:09:24]} Rxc4 {[%emt 0:00:07]} 28. Bxe6 {[%emt 0:00:03]} Rc2 {[%emt 0:06:18]} 29. Re3 {[%emt 0:10:35]} Nd6 {[%emt 0:03:38]} 30. d5 {[%emt 0:09:04]} Nc4 {[%emt 0:06:34]} 31. Rb3 {[%emt 0:00:07]} Nxb2 {[%emt 0:00:45]} 32. R3xb2 {[%emt 0:00:01]} Rc3 {[%emt 0:00:43]} 33. Rb3 {[%emt 0:00:52]} Rc5 {[%emt 0:01:06]} 34. g4 {[%emt 0:00:27]} Bc8 {[%emt 0:01:32]} 35. Bxc8 {[%emt 0:07:44]} Rcxc8 {[%emt 0:00:11]} 36. Nd4 {[%emt 0:01:24]} Kg8 {[%emt 0:01:04]} 37. Nc6 {[%emt 0:00:56]} Rd7 {[%emt 0:00:06]} 38. Rf3 {[%emt 0:00:02]} Re8 {[%emt 0:00:51]} 39. Nd4 {[%emt 0:03:03]} Bxa3 {[%emt 0:02:20]} 40. Rxa3 {[%emt 0:00:27]} Rxe4 {[%emt 0:00:05]} 41. Nc6 {[%emt 0:00:16]} Rxg4+ {[%emt 0:00:11]} 42. Kf1 {[%emt 0:00:51]} Rh4 {[%emt 0:00:43]} 43. Kg2 {[%emt 0:00:01]} Rh5 {[%emt 0:00:55]} 44. Rxa7 {[%emt 0:01:21]} Rxa7 {[%emt 0:00:12]} 45. Nxa7 {[%emt 0:00:00]} Rxd5 {[%emt 0:00:07]} 46. Rxb6 {[%emt 0:00:02]} Rh5 {[%emt 0:00:17]} 47. Rxf6 {[%emt 0:00:23]} Rxh6 {[%emt 0:00:05]} 48. Nb5 {[%emt 0:00:12]} Rh5 {[%emt 0:00:37]} 49. Nd4 {[%emt 0:00:04]} Kg7 {[%emt 0:01:18]} 50. Ra6 {[%emt 0:00:06]} Rd5 {[%emt 0:00:35]} 51. Ne6+ {[%emt 0:00:27]} Kf7 {[%emt 0:00:17]} 52. Nf4 {[%emt 0:00:03]} Rd4 {[%emt 0:00:35]} 53. Kg3 {[%emt 0:00:13]} h5 {[%emt 0:01:05]} 54. f3 {[%emt 0:00:49]} Rd1 {[%emt 0:00:19]} 55. Nh3 {[%emt 0:00:35]} Kg7 {[%emt 0:00:38]} 56. Ng5 {[%emt 0:00:27]} Rg1+ {[%emt 0:00:23]} 57. Kf4 {[%emt 0:00:03]} Kh6 {[%emt 0:00:33]} 58. Ne6 {[%emt 0:00:55]} h4 {[%emt 0:00:23]} 59. Ra8 {[%emt 0:00:14]} Kh7 {[%emt 0:00:11]} 60. Ra7+ {[%emt 0:00:33]} Kg8 {[%emt 0:00:59]} 61. Ke5 {[%emt 0:02:20]} Rf1 {[%emt 0:00:29]} 62. f4 {[%emt 0:01:08]} Rb1 {[%emt 0:00:08]} 63. Kf6 {[%emt 0:00:58]} Rb6 {[%emt 0:00:05]} 64. Rg7+ {[%emt 0:00:14]} Kh8 {[%emt 0:00:04]} 65. Rxg6 {[%emt 0:00:06]} Rb5 {[%emt 0:01:45]} 66. Ng5 {[%emt 0:01:31]} Rb4 {[%emt 0:00:34]} 67. Nf7+ {[%emt 0:00:08]} 1-0

[Event "Kragero Resort A 2020"]
[Site "Kragero"]
[Date "2020.02.22"]
[Round "8.16"]
[White "Radeva, Viktoria"]
[Black "Miedema, David"]
[Result "1/2-1/2"]
[ECO "C08"]
[WhiteElo "2320"]
[BlackElo "2368"]
[Annotator "ChessBase"]
[PlyCount "100"]
[EventDate "2020.02.19"]
[EventType "swiss"]
[EventCountry "NOR"]
[SourceTitle "playchess.com"]
[Source "ChessBase"]
[SourceQuality "1"]
[TimeControl "5400+30"]

1. e4 {[%emt 0:00:53]} e6 {[%emt 0:00:00]} 2. d4 {[%emt 0:00:07]} d5 {[%emt 0:00:00]} 3. Nd2 {[%emt 0:00:04]} c5 {[%emt 0:00:00]} 4. exd5 {[%emt 0:00:11]} exd5 {[%emt 0:00:00]} 5. Ngf3 {[%emt 0:00:08]} Nf6 {[%emt 0:00:00]} 6. Bb5+ {[%emt 0:00:09]} Bd7 {[%emt 0:00:00]} 7. Bxd7+ {[%emt 0:00:03]} Nbxd7 {[%emt 0:00:00]} 8. O-O {[%emt 0:00:33]} Be7 {[%emt 0:00:00]} 9. dxc5 {[%emt 0:00:57]} Nxc5 {[%emt 0:00:00]} 10. Nb3 {[%emt 0:00:38]} Nce4 {[%emt 0:00:04]} 11. h3 {[%emt 0:01:17]} O-O {[%emt 0:00:37]} 12. Be3 {[%emt 0:01:02]} Re8 {[%emt 0:00:29]} 13. c3 {[%emt 0:04:55]} Nd6 {[%emt 0:06:30]} 14. Qc2 {[%emt 0:05:11]} Nfe4 {[%emt 0:00:40]} 15. Rad1 {[%emt 0:04:06]} Nc4 {[%emt 0:01:19]} 16. Bd4 {[%emt 0:03:28]} Qd6 {[%emt 0:01:28]} 17. Rfe1 {[%emt 0:06:03]} Qa6 {[%emt 0:01:08]} 18. Nc1 {[%emt 0:07:22]} Bf8 {[%emt 0:02:59]} 19. Nd3 {[%emt 0:05:19]} Rad8 {[%emt 0:01:36]} 20. Nfe5 {[%emt 0:04:34]} h6 {[%emt 0:05:55]} 21. a3 {[%emt 0:06:40]} Ng5 {[%emt 0:02:53]} 22. Re2 {[%emt 0:04:11]} Ne6 {[%emt 0:00:23]} 23. Nf3 {[%emt 0:00:59]} Nxd4 {[%emt 0:00:11]} 24. Nxd4 {[%emt 0:00:17]} Re4 {[%emt 0:01:56]} 25. Rde1 {[%emt 0:02:10]} Rde8 {[%emt 0:00:11]} 26. Nf4 {[%emt 0:05:16]} Qd6 {[%emt 0:05:18]} 27. g3 {[%emt 0:04:47]} Qd7 {[%emt 0:01:53]} 28. Kg2 {[%emt 0:04:26]} g6 {[%emt 0:01:40]} 29. Qb3 {[%emt 0:06:59]} Rxe2 {[%emt 0:01:11]} 30. Rxe2 {[%emt 0:00:05]} Rxe2 {[%emt 0:00:12]} 31. Nfxe2 {[%emt 0:05:20]} a6 {[%emt 0:00:18]} 32. a4 {[%emt 0:01:40]} h5 {[%emt 0:00:31]} 33. h4 {[%emt 0:02:09]} Bh6 {[%emt 0:00:18]} 34. Qc2 {[%emt 0:00:54]} Qe7 {[%emt 0:00:43]} 35. b3 {[%emt 0:02:06]} Nd6 {[%emt 0:00:21]} 36. Qd3 {[%emt 0:01:33]} Ne4 {[%emt 0:00:20]} 37. Nf3 {[%emt 0:05:04]} Qe6 {[%emt 0:02:31]} 38. Ned4 {[%emt 0:00:34]} Qe7 {[%emt 0:02:53]} 39. Ne2 {[%emt 0:03:36]} Qc5 {[%emt 0:01:54]} 40. Nfd4 {[%emt 0:00:15]} Bg7 {[%emt 0:00:59]} 41. f3 {[%emt 0:02:16]} Nf6 {[%emt 0:01:59]} 42. Qe3 {[%emt 0:00:20]} Qc8 {[%emt 0:00:18]} 43. Qe7 {[%emt 0:00:57]} Ne8 {[%emt 0:00:10]} 44. Nf4 {[%emt 0:01:07]} Bf6 {[%emt 0:00:41]} 45. Nxd5 {[%emt 0:00:38]} Bxd4 {[%emt 0:01:44]} 46. cxd4 {[%emt 0:00:17]} Qc2+ {[%emt 0:00:05]} 47. Kh3 {[%emt 0:00:53]} Qf5+ {[%emt 0:00:12]} 48. Kg2 {[%emt 0:00:06]} Qc2+ {[%emt 0:00:03]} 49. Kg1 {[%emt 0:01:14]} Qd1+ {[%emt 0:01:18]} 50. Kg2 {[%emt 0:00:07]} Qc2+ {[%emt 0:00:05]} 1/2-1/2

[Event "Kragero Resort A 2020"]
[Site "Kragero"]
[Date "2020.02.22"]
[Round "8.17"]
[White "Vestby-Ellingsen, Mads"]
[Black "Heimisson, Hilmir Freyr"]
[Result "0-1"]
[ECO "D02"]
[WhiteElo "2357"]
[BlackElo "2250"]
[Annotator "ChessBase"]
[PlyCount "66"]
[EventDate "2020.02.19"]
[EventType "swiss"]
[EventCountry "NOR"]
[SourceTitle "playchess.com"]
[Source "ChessBase"]
[SourceQuality "1"]
[TimeControl "5400+30"]

1. Nf3 {[%emt 0:00:00]} c5 {[%emt 0:02:01]} 2. c3 {[%emt 0:04:49]} d5 {[%emt 0:12:22]} 3. d4 {[%emt 0:01:02]} Nc6 {[%emt 0:01:03]} 4. dxc5 {[%emt 0:03:51]} e6 {[%emt 0:00:11]} 5. b4 {[%emt 0:00:43]} a5 {[%emt 0:00:24]} 6. b5 {[%emt 0:00:37]} Na7 {[%emt 0:01:05]} 7. e3 {[%emt 0:07:05]} Bd7 {[%emt 0:07:37]} 8. a4 {[%emt 0:04:28]} Bxc5 {[%emt 0:04:13]} 9. Be2 {[%emt 0:00:33]} Nf6 {[%emt 0:01:21]} 10. Nbd2 {[%emt 0:00:40]} Nc8 {[%emt 0:09:27]} 11. O-O {[%emt 0:01:53]} Nb6 {[%emt 0:01:59]} 12. Bb2 {[%emt 0:02:28]} O-O {[%emt 0:01:00]} 13. c4 {[%emt 0:00:34]} Bb4 {[%emt 0:04:31]} 14. Qb3 {[%emt 0:07:15]} dxc4 {[%emt 0:06:18]} 15. Nxc4 {[%emt 0:02:19]} Nxc4 {[%emt 0:00:51]} 16. Bxc4 {[%emt 0:00:13]} Qe7 {[%emt 0:01:01]} 17. Rfd1 {[%emt 0:10:33]} Rfd8 {[%emt 0:01:46]} 18. Be5 {[%emt 0:03:10]} Be8 {[%emt 0:01:48]} 19. Qb2 {[%emt 0:01:08]} Rac8 {[%emt 0:00:55]} 20. Be2 {[%emt 0:02:07]} Ne4 {[%emt 0:10:46]} 21. Rxd8 {[%emt 0:02:51]} Rxd8 {[%emt 0:00:16]} 22. Bxg7 {[%emt 0:08:29]} f6 {[%emt 0:01:11]} 23. Bh6 {[%emt 0:00:13]} Bc3 {[%emt 0:04:51]} 24. Qa3 {[%emt 0:00:11]} Qb4 {[%emt 0:00:03]} 25. Ra2 {[%emt 0:13:04]} Qb1+ {[%emt 0:02:24]} 26. Bf1 {[%emt 0:00:20]} Bf7 {[%emt 0:01:01]} 27. Re2 {[%emt 0:04:44]} Qb4 {[%emt 0:07:50]} 28. Qc1 {[%emt 0:01:44]} e5 {[%emt 0:01:35]} 29. Ne1 {[%emt 0:09:21]} Nd2 {[%emt 0:05:36]} 30. Rxd2 {[%emt 0:03:40]} Bxd2 {[%emt 0:01:29]} 31. Qd1 {[%emt 0:00:43]} Bb3 {[%emt 0:04:31]} 32. Nc2 {[%emt 0:02:04]} Qh4 {[%emt 0:00:39]} 33. Qb1 {[%emt 0:00:36]} Bf7 {[%emt 0:00:36]} 0-1

[Event "Kragero Resort A 2020"]
[Site "Kragero"]
[Date "2020.02.22"]
[Round "8.18"]
[White "Vijayalakshmi, Subbaraman"]
[Black "Ingebretsen, Jens E"]
[Result "1-0"]
[ECO "D02"]
[WhiteElo "2331"]
[BlackElo "2241"]
[Annotator "ChessBase"]
[PlyCount "91"]
[EventDate "2020.02.19"]
[EventType "swiss"]
[EventCountry "NOR"]
[SourceTitle "playchess.com"]
[Source "ChessBase"]
[SourceQuality "1"]
[TimeControl "5400+30"]

1. d4 {[%emt 0:03:24]} Nf6 {[%emt 0:00:00]} 2. Nf3 {[%emt 0:00:06]} e6 {[%emt 0:00:00]} 3. Bf4 {[%emt 0:00:03]} c5 {[%emt 0:00:33]} 4. e3 {[%emt 0:00:13]} Nc6 {[%emt 0:00:08]} 5. Nbd2 {[%emt 0:01:34]} d5 {[%emt 0:00:15]} 6. c3 {[%emt 0:00:17]} Bd6 {[%emt 0:00:11]} 7. Bg3 {[%emt 0:00:22]} O-O {[%emt 0:00:11]} 8. Bd3 {[%emt 0:00:15]} b6 {[%emt 0:00:28]} 9. Qe2 {[%emt 0:00:18]} Bb7 {[%emt 0:00:10]} 10. Rd1 {[%emt 0:01:09]} Re8 {[%emt 0:01:17]} 11. Ne5 {[%emt 0:00:42]} Qc7 {[%emt 0:01:20]} 12. f4 {[%emt 0:01:27]} Ne7 {[%emt 0:02:52]} 13. Qf3 {[%emt 0:06:21]} a5 {[%emt 0:10:34]} 14. Bh4 {[%emt 0:05:10]} Ng6 {[%emt 0:03:44]} 15. Bxf6 {[%emt 0:02:05]} gxf6 {[%emt 0:00:09]} 16. Ng4 {[%emt 0:00:53]} Qe7 {[%emt 0:01:56]} 17. f5 {[%emt 0:01:50]} exf5 {[%emt 0:06:42]} 18. Nh6+ {[%emt 0:00:47]} Kh8 {[%emt 0:00:08]} 19. Nxf5 {[%emt 0:00:10]} Qc7 {[%emt 0:06:10]} 20. O-O {[%emt 0:04:19]} Re6 {[%emt 0:02:47]} 21. Qh5 {[%emt 0:01:00]} cxd4 {[%emt 0:07:06]} 22. exd4 {[%emt 0:00:55]} Rg8 {[%emt 0:01:37]} 23. Nxd6 {[%emt 0:21:53]} Qxd6 {[%emt 0:01:06]} 24. Rf3 {[%emt 0:00:16]} Rg7 {[%emt 0:00:50]} 25. Rdf1 {[%emt 0:00:28]} Qe7 {[%emt 0:01:35]} 26. Qh6 {[%emt 0:06:36]} Bc6 {[%emt 0:05:14]} 27. Rg3 {[%emt 0:04:15]} Qf8 {[%emt 0:02:48]} 28. Bxg6 {[%emt 0:02:13]} fxg6 {[%emt 0:00:30]} 29. Rxg6 {[%emt 0:00:19]} Qg8 {[%emt 0:03:23]} 30. Rgxf6 {[%emt 0:04:54]} Rxg2+ {[%emt 0:01:53]} 31. Kh1 {[%emt 0:00:10]} Rg6 {[%emt 0:05:42]} 32. Rxg6 {[%emt 0:02:14]} Rxg6 {[%emt 0:00:11]} 33. Qf4 {[%emt 0:00:47]} h6 {[%emt 0:01:26]} 34. Qe5+ {[%emt 0:08:02]} Kh7 {[%emt 0:00:10]} 35. Qf5 {[%emt 0:00:17]} Kh8 {[%emt 0:00:20]} 36. Nf3 {[%emt 0:00:38]} Bb5 {[%emt 0:03:30]} 37. Ne5 {[%emt 0:03:58]} Rg7 {[%emt 0:00:19]} 38. Re1 {[%emt 0:00:49]} Ba6 {[%emt 0:02:06]} 39. Qh3 {[%emt 0:05:09]} Kh7 {[%emt 0:00:45]} 40. Qf5+ {[%emt 0:03:08]} Kh8 {[%emt 0:00:01]} 41. Qf4 {[%emt 0:01:41]} Kh7 {[%emt 0:00:14]} 42. Nd7 {[%emt 0:00:23]} Rxd7 {[%emt 0:03:58]} 43. Qf5+ {[%emt 0:00:10]} Kh8 {[%emt 0:00:05]} 44. Qxd7 {[%emt 0:00:39]} Bd3 {[%emt 0:00:16]} 45. Qh3 {[%emt 0:00:50]} Qg6 {[%emt 0:00:58]} 46. Qc8+ {[%emt 0:01:00]} 1-0

[Event "Kragero Resort A 2020"]
[Site "Kragero"]
[Date "2020.02.22"]
[Round "8.19"]
[White "Nordquelle, Daniel"]
[Black "Sriram, Jha"]
[Result "0-1"]
[ECO "B78"]
[WhiteElo "2242"]
[BlackElo "2383"]
[Annotator "ChessBase"]
[PlyCount "112"]
[EventDate "2020.02.19"]
[EventType "swiss"]
[EventCountry "NOR"]
[SourceTitle "playchess.com"]
[Source "ChessBase"]
[SourceQuality "1"]
[TimeControl "5400+30"]

1. e4 {[%emt 0:00:00]} c5 {[%emt 0:03:13]} 2. Nf3 {[%emt 0:00:47]} d6 {[%emt 0:00:49]} 3. d4 {[%emt 0:03:25]} cxd4 {[%emt 0:01:30]} 4. Nxd4 {[%emt 0:00:05]} Nf6 {[%emt 0:00:03]} 5. Nc3 {[%emt 0:00:05]} g6 {[%emt 0:00:07]} 6. Be3 {[%emt 0:02:26]} Bg7 {[%emt 0:00:19]} 7. f3 {[%emt 0:00:17]} O-O {[%emt 0:00:06]} 8. Qd2 {[%emt 0:03:53]} Nc6 {[%emt 0:00:10]} 9. Bc4 {[%emt 0:02:24]} Bd7 {[%emt 0:00:07]} 10. O-O-O {[%emt 0:03:31]} Rb8 {[%emt 0:00:04]} 11. Nd5 {[%emt 0:04:27]} b5 {[%emt 0:18:37]} 12. Nxf6+ {[%emt 0:01:35]} Bxf6 {[%emt 0:00:36]} 13. Nxc6 {[%emt 0:06:43]} Bxc6 {[%emt 0:04:12]} 14. Bd5 {[%emt 0:00:12]} Qc7 {[%emt 0:00:38]} 15. Kb1 {[%emt 0:02:52]} Rfc8 {[%emt 0:06:36]} 16. h4 {[%emt 0:08:23]} Bxd5 {[%emt 0:02:08]} 17. exd5 {[%emt 0:00:09]} b4 {[%emt 0:01:20]} 18. h5 {[%emt 0:05:04]} Rb5 {[%emt 0:05:30]} 19. hxg6 {[%emt 0:01:08]} fxg6 {[%emt 0:09:13]} 20. Qe2 {[%emt 0:18:42]} Ra5 {[%emt 0:01:44]} 21. Bd4 {[%emt 0:07:23]} Qc4 {[%emt 0:11:21]} 22. Qe6+ {[%emt 0:03:37]} Kf8 {[%emt 0:00:02]} 23. Bxf6 {[%emt 0:00:08]} Qxa2+ {[%emt 0:19:58]} 24. Kc1 {[%emt 0:00:05]} Rxc2+ {[%emt 0:00:04]} 25. Kxc2 {[%emt 0:00:03]} Rc5+ {[%emt 0:00:05]} 26. Kd2 {[%emt 0:03:03]} Rxd5+ {[%emt 0:00:21]} 27. Ke2 {[%emt 0:00:06]} Rd2+ {[%emt 0:01:30]} 28. Kxd2 {[%emt 0:00:04]} Qxe6 {[%emt 0:00:01]} 29. Bd4 {[%emt 0:00:07]} h5 {[%emt 0:03:38]} 30. Bxa7 {[%emt 0:01:39]} Qa2 {[%emt 0:00:25]} 31. Bd4 {[%emt 0:08:49]} e5 {[%emt 0:00:01]} 32. Bxe5 {[%emt 0:01:16]} dxe5 {[%emt 0:00:03]} 33. Ke3 {[%emt 0:02:11]} Qxb2 {[%emt 0:01:33]} 34. Rd2 {[%emt 0:00:04]} Qc3+ {[%emt 0:00:23]} 35. Ke2 {[%emt 0:00:04]} Qc4+ {[%emt 0:00:49]} 36. Ke3 {[%emt 0:00:12]} Qf4+ {[%emt 0:01:50]} 37. Ke2 {[%emt 0:02:33]} e4 {[%emt 0:01:44]} 38. Rf1 {[%emt 0:03:11]} Kg7 {[%emt 0:00:05]} 39. fxe4 {[%emt 0:00:26]} Qxe4+ {[%emt 0:00:04]} 40. Kf2 {[%emt 0:00:23]} Qf4+ {[%emt 0:01:44]} 41. Ke2 {[%emt 0:00:42]} Qg3 {[%emt 0:00:14]} 42. Rf2 {[%emt 0:00:18]} Qe5+ {[%emt 0:00:28]} 43. Kf1 {[%emt 0:01:40]} Qa1+ {[%emt 0:00:05]} 44. Ke2 {[%emt 0:00:04]} h4 {[%emt 0:01:31]} 45. Rf3 {[%emt 0:00:51]} Qg1 {[%emt 0:01:03]} 46. Rf2 {[%emt 0:00:49]} Qa1 {[%emt 0:01:35]} 47. Rf3 {[%emt 0:00:29]} Qe5+ {[%emt 0:00:34]} 48. Re3 {[%emt 0:01:18]} Qg5 {[%emt 0:00:24]} 49. Kd3 {[%emt 0:00:48]} Qd5+ {[%emt 0:02:16]} 50. Kc2 {[%emt 0:00:28]} Qa2+ {[%emt 0:00:02]} 51. Kc1 {[%emt 0:00:59]} Qa1+ {[%emt 0:01:13]} 52. Kc2 {[%emt 0:00:09]} Kh6 {[%emt 0:00:32]} 53. Rb3 {[%emt 0:03:59]} Qa2+ {[%emt 0:00:21]} 54. Rb2 {[%emt 0:00:04]} Qc4+ {[%emt 0:00:08]} 55. Kb1 {[%emt 0:00:06]} b3 {[%emt 0:00:33]} 56. Rf2 {[%emt 0:00:38]} Qe4+ {[%emt 0:00:33]} 0-1